[Event "15th Paleochora Open 2022"]
[Site "Paleochora"]
[Date "2022.07.18"]
[Round "2.4"]
[White "Alexiadis, Hristos"]
[Black "Basso, Pier Luigi"]
[Result "1/2-1/2"]
[ECO "D11"]
[WhiteElo "2283"]
[BlackElo "2561"]
[Annotator "TA"]
[PlyCount "129"]
[EventDate "2022.07.17"]
[EventType "swiss"]
[EventCountry "GRE"]
[SourceTitle "playchess.com"]
[Source "ChessBase"]
[SourceQuality "1"]
[TimeControl "40/5400+30:900+30"]

{[%evp 11,129,13,13,13,13,10,14,4,16,10,6,0,3,0,0,0,0,-10,0,0,-8,-35,-29,-27,-26,-35,-22,-31,-27,-45,-45,-62,-63,-62,-59,-129,-128,-137,-137,-137,-120,-120,-120,-121,-116,-142,-139,-202,-139,-139,-139,-176,-203,-243,-227,-238,-235,-408,-289,-367,-366,-350,-285,-234,-236,-227,-238,-208,-215,-208,0,0,0,0,0,0,0,0,0,0,0,0,0,0,0,0,0,0,0,0,0,0,0,0,0,0,0,0,0,0,0,0,0,0,0,0,0,0,0,0,0,0,0,0,0,0,0,0,0,0]} 1. d4 {[%emt 0:00:07]} Nf6 {[%emt 0:01:06]} 2. c4 {[%emt 0:01:22]} c6 {[%emt 0:00:09]} 3. Nf3 {[%emt 0:00:23]} d5 {[%emt 0:00:11]} 4. e3 {[%emt 0:00:06]} Bg4 {[%emt 0:01:09]} 5. Qb3 {[%emt 0:00:23]} Qb6 {[%emt 0:00:08]} 6. Nc3 {[%emt 0:00:10]} e6 {[%emt 0:00:19]} 7. Nh4 {[%emt 0:01:26] D11: Slav Defence: 3 Nf3 sidelines and 3...Nf6 4 e3 Bg4.} Bh5 {[%emt 0:03:00]} 8. h3 {[%emt 0:00:09]} Be7 {[%emt 0:07:39]} 9. g4 {[%emt 0:00:38]} Bg6 {[%emt 0:00:04]} 10. Nxg6 {[%emt 0:00:07]} hxg6 {[%emt 0:00:05]} 11. Bg2 {[%emt 0:01:33]} g5 {[%emt 0:00:10]} 12. Bd2 {[%emt 0:02:07]} Nbd7 {[%emt 0:00:06][%cal Bb8d7,Bd7b6,Bb6d5][%mdl 32]} 13. O-O-O {[%emt 0:05:37]} a5 {[%emt 0:00:10][%cal Ba7a5,Ba5a4][%mdl 32]} 14. Rhe1 {[%emt 0:12:46]} a4 {[%emt 0:05:03]} 15. Qxb6 {[%emt 0:01:11]} Nxb6 {[%emt 0:00:06]} 16. cxd5 {[%emt 0:00:05]} (16. c5 $5 {[%cal Rc5b6]} Nc4 17. b3 Nxd2 18. Kxd2 $11) 16... Nfxd5 {[%emt 0:00:58] [#]} 17. Nxd5 $146 {[%emt 0:01:49]} ({Predecessor:} 17. Bf1 a3 18. b3 Nxc3 19. Bxc3 Nd5 20. Bd2 Bb4 21. Bxb4 Nxb4 22. Kb1 Ke7 {½-½ (22) Georgiev,K (2682)-Ragger,M (2670) Vienna 2012}) 17... Nxd5 {[%emt 0:01:22]} 18. a3 {[%emt 0:05:02]} Bd6 {[%emt 0:04:51]} 19. Kb1 {[%emt 0:07:48]} Kd7 {[%emt 0:06:37]} 20. e4 {[%emt 0:07:01]} Nf4 {[%emt 0:03:13]} 21. Bxf4 {[%emt 0:00:07]} gxf4 {[%emt 0:04:10]} 22. Rd3 {[%emt 0:15:00]} g5 {[%emt 0:01:43]} 23. d5 {[%emt 0:05:09]} (23. Kc2 $15) 23... exd5 $1 $17 {[%emt 0:00:26]} 24. exd5 {[%emt 0:00:08]} c5 {[%emt 0:00:08]} 25. Rd2 {[%emt 0:18:02]} b5 {[%emt 0:00:20]} 26. Rde2 {[%emt 0:00:45]} Rhb8 {[%emt 0:02:53]} 27. Be4 {[%emt 0:00:20]} Kc7 {[%emt 0:01:26]} 28. Bf5 {[%emt 0:01:28]} Rh8 {[%emt 0:01:03]} 29. Kc2 {[%emt 0:07:44]} (29. Rh1 $17 {is a better defense.}) 29... Rab8 {[%emt 0:04:47]} 30. Rh1 {[%emt 0:00:53]} Rbe8 {[%emt 0:02:52]} 31. Rxe8 {[%emt 0:04:09]} Rxe8 {[%emt 0:00:02][%mdl 4096] Endgame KRB-KRB} 32. h4 {[%emt 0:00:04]} gxh4 {[%emt 0:00:35]} 33. Rxh4 {[%emt 0:00:02]} Re2+ {[%emt 0:00:08]} 34. Kd1 $2 {[%emt 0:00:12]} (34. Kc1) 34... Rxf2 {[%emt 0:02:51]} 35. Rh7 {[%emt 0:00:05]} c4 $1 {[%emt 0:00:20]} 36. Rxf7+ {[%emt 0:00:52]} Kb6 $1 {[%emt 0:00:02]} 37. g5 {[%emt 0:01:38]} Rg2 {[%emt 0:00:05]} ({Not} 37... Be5 38. g6 Rg2 39. d6 Bxd6 40. Be4 Rg1+ 41. Kc2 $17) 38. g6 {[%emt 0:00:06]} Kc5 {[%emt 0:01:16]} (38... Rxb2 $2 39. Rf6 Rg2 40. Rxd6+ $18) 39. Be4 {[%emt 0:01:07] [#]} Rg1+ {[%emt 0:01:39]} (39... Rxb2 $2 40. g7 Ra2 41. g8=Q $18) 40. Ke2 {[%emt 0:00:00] [#]} Kd4 $2 {[%emt 0:00:00]} ({Black should play} 40... Rg3 $1 $19 {[%cal Rg3e3]} 41. Kf1 Be5) 41. Kf2 $11 {[%emt 0:03:44] The position is equal.} Rg3 {[%emt 0:01:34]} 42. Rf6 $1 {[%emt 0:08:19]} Kxe4 {[%emt 0:10:39]} 43. Rxd6 {[%emt 0:00:04] KR-KR} Rg5 {[%emt 0:01:25]} (43... Kf5 $5 44. Rb6 Rxg6 $11) 44. Rb6 {[%emt 0:03:32] Hoping for d6.} Rxd5 {[%emt 0:00:10] And now ...Rd2+ would win.} 45. Re6+ {[%emt 0:00:50]} Kf5 {[%emt 0:03:14]} 46. g7 {[%emt 0:00:07]} Rd2+ {[%emt 0:01:01]} 47. Kf3 {[%emt 0:00:07]} Rd3+ {[%emt 0:00:09]} 48. Kf2 {[%emt 0:00:03]} Rg3 {[%emt 0:00:35]} 49. Re7 {[%emt 0:01:13]} Rg6 {[%emt 0:03:42]} 50. Kf3 {[%emt 0:00:26]} Rg3+ {[%emt 0:02:36]} 51. Kf2 {[%emt 0:00:03]} Rg6 {[%emt 0:00:50]} 52. Kf3 {[%emt 0:00:03]} Rg1 {[%emt 0:00:06]} 53. Rf7+ {[%emt 0:02:07]} Ke5 {[%emt 0:00:40]} 54. Re7+ {[%emt 0:00:06]} Kf6 {[%emt 0:02:33]} 55. Rb7 {[%emt 0:00:05]} Rxg7 {[%emt 0:00:18]} 56. Rxb5 {[%emt 0:00:15]} Rc7 {[%emt 0:00:17]} 57. Kxf4 {[%emt 0:00:08]} c3 {[%emt 0:00:07]} 58. bxc3 {[%emt 0:00:04]} Rxc3 {[%emt 0:00:12]} 59. Rb6+ {[%emt 0:00:05]} Ke7 {[%emt 0:00:06]} 60. Ke4 {[%emt 0:00:08]} Rxa3 {[%emt 0:00:13]} 61. Kd4 {[%emt 0:00:20]} Ra1 {[%emt 0:00:12]} 62. Kc3 {[%emt 0:00:07]} a3 {[%emt 0:00:13] aiming for ...Rc1+.} 63. Ra6 {[%emt 0:00:24]} Kd7 {[%emt 0:00:16]} 64. Kb3 {[%emt 0:00:20]} Rb1+ {[%emt 0:00:03]} 65. Ka2 {[%emt 0:00:06] White happily takes the draw.  Weighted Error Value: White=0.09 (flawless) /Black=0.09 (flawless)} 1/2-1/2

[Event "15th Paleochora Open 2022"]
[Site "Paleochora"]
[Date "2022.07.18"]
[Round "2.5"]
[White "Meshkovs, Nikita"]
[Black "Georgakopoulos, Nikolaos K."]
[Result "1-0"]
[ECO "E92"]
[WhiteElo "2535"]
[BlackElo "2239"]
[Annotator "TA"]
[PlyCount "61"]
[EventDate "2022.07.17"]
[EventType "swiss"]
[EventCountry "GRE"]
[SourceTitle "playchess.com"]
[Source "ChessBase"]
[SourceQuality "1"]
[TimeControl "40/5400+30:900+30"]

{[%evp 21,61,64,61,59,53,38,75,7,43,41,30,16,41,30,12,7,0,0,108,43,83,34,87,89,151,161,162,159,234,241,442,408,563,568,795,773,837,845,948,944,29996,-980]} 1. Nf3 {[%emt 0:00:25] Havasi,G} Nf6 {[%emt 0:00:30]} 2. c4 {[%emt 0:00:12]} g6 {[%emt 0:00:00]} 3. Nc3 {[%emt 0:00:04]} Bg7 {[%emt 0:00:00]} 4. e4 {[%emt 0:00:19]} d6 {[%emt 0:00:00]} 5. d4 {[%emt 0:00:05]} O-O {[%emt 0:00:10]} 6. h3 {[%emt 0:00:03]} e5 {[%emt 0:00:20]} 7. d5 {[%emt 0:00:04]} a5 {[%emt 0:00:10]} 8. g4 {[%emt 0:00:04]} Na6 {[%emt 0:03:40]} 9. Be3 {[%emt 0:00:00]} Nc5 {[%emt 0:00:30]} 10. Nd2 {[%emt 0:00:11]} Bd7 {[%emt 0:03:40]} 11. Be2 {[%emt 0:08:04]} c6 {[%emt 0:00:30]} 12. g5 {[%emt 0:00:00] E92: King's Indian: Classical: 6 Be2 e5: 7 dxe5, 7 Be3 and Petrosian System without 7...Nbd7.} Ne8 {[%emt 0:00:30][%cal Bf6e8,Be8c7,Bc7a6][%mdl 32]} 13. h4 {[%emt 0:00:34]} f6 {[%emt 0:08:00] [#]} 14. Rg1 $146 {[%emt 0:08:41]} ({White should try} 14. Nb3 $16) ({Predecessor:} 14. Nb3 b6 15. Nxc5 bxc5 16. Qd2 fxg5 17. hxg5 cxd5 18. Nxd5 Rf7 19. O-O-O Rb8 20. Rh2 {1-0 (61) Anand,V (2785)-Ponomariov,R (2717) Bilbao 2014 CBM 163 [Havasi,G]}) 14... fxg5 {[%emt 0:17:57]} 15. hxg5 {[%emt 0:00:56]} Nc7 {[%emt 0:00:14]} 16. Qc2 {[%emt 0:14:27]} b6 {[%emt 0:14:06]} 17. Bg4 {[%emt 0:08:29]} cxd5 {[%emt 0:01:01] Hoping for ...d4.} 18. exd5 {[%emt 0:04:37]} N7a6 $1 {[%emt 0:04:56]} 19. a3 {[%emt 0:01:32] Prevents Nb4.} Bf5 {[%emt 0:07:40]} (19... e4 $1 $11) 20. Nce4 {[%emt 0:06:32]} (20. Bxf5 $16 Rxf5 21. O-O-O) 20... Kh8 {[%emt 0:02:21] [#]} 21. f3 {[%emt 0:07:20]} (21. O-O-O $1 $16) 21... Rc8 {[%emt 0:01:21]} (21... Nxe4 $1 $14 22. Nxe4 Bxg4 23. fxg4 Nc5) 22. Bxf5 $16 {[%emt 0:05:20]} gxf5 {[%emt 0:03:15] [#]} (22... Rxf5 $142 23. O-O-O b5) 23. Nc3 $1 {[%emt 0:00:01] White is more active.} e4 {[%emt 0:12:41]} 24. fxe4 {[%emt 0:04:14]} Qe7 {[%emt 0:04:40]} (24... Nxe4 $16 25. Ncxe4 (25. Ndxe4 Qe7 $16) 25... fxe4) 25. O-O-O $18 {[%emt 0:03:28] aiming for Bxc5.} fxe4 $2 {[%emt 0:00:12]} (25... f4 $2 26. Bf2) (25... Nxe4 {might work better.} 26. Ncxe4 (26. Ndxe4 Rxc4 27. g6 fxe4 $16) 26... b5) 26. Kb1 {[%emt 0:00:52]} b5 {[%emt 0:02:22]} 27. cxb5 {[%emt 0:03:36]} Nd3 {[%emt 0:05:49][%cal Od3b2]} 28. Ndxe4 {[%emt 0:01:31]} Nxb2 {[%emt 0:02:10] [#]} 29. Nf6 $1 {[%emt 0:03:50]} Bxf6 {[%emt 0:00:04]} (29... Rxf6 30. Rh1) 30. gxf6 {[%emt 0:00:02]} ({Not} 30. Qxb2 $2 Qxe3 31. gxf6 Rxc3 $19) 30... Qxe3 {[%emt 0:00:11] [#]} 31. Qxh7+ $3 {[%emt 0:00:10][%mdl 33280] Weighted Error Value: White=0.16 (very precise) /Black=0.80. Loss on time!?} 1-0

[Event "15th Paleochora Open 2022"]
[Site "Paleochora"]
[Date "2022.07.18"]
[Round "2.6"]
[White "David, Alberto"]
[Black "Baillon, Olivier"]
[Result "1-0"]
[ECO "E04"]
[WhiteElo "2534"]
[BlackElo "2219"]
[Annotator "TA"]
[PlyCount "73"]
[EventDate "2022.07.17"]
[EventType "swiss"]
[EventCountry "GRE"]
[SourceTitle "playchess.com"]
[Source "ChessBase"]
[SourceQuality "1"]
[TimeControl "40/5400+30:900+30"]

{[%evp 16,73,-13,-8,-14,-21,0,-60,-48,-57,-50,-64,-41,-107,-90,-98,-96,-139,0,9,26,0,0,0,0,0,62,0,138,-10,86,77,63,39,33,0,29,33,12,16,400,429,423,429,560,550,549,525,483,429,418,401,339,339,325,325,501,296,489,397]} 1. d4 {[%emt 0:00:14]} d5 {[%emt 0:01:24]} 2. c4 {[%emt 0:00:25]} e6 {[%emt 0:00:19]} 3. Nf3 {[%emt 0:00:33]} Nf6 {[%emt 0:02:34]} 4. g3 {[%emt 0:01:10]} Bb4+ {[%emt 0:02:07]} 5. Nbd2 {[%emt 0:00:27]} dxc4 {[%emt 0:01:46]} 6. Qc2 {[%emt 0:02:01]} b5 {[%emt 0:02:31]} 7. a4 {[%emt 0:00:35]} c6 {[%emt 0:00:48]} 8. Bg2 {[%emt 0:00:30]} Bb7 {[%emt 0:05:24]} 9. O-O $1 {[%emt 0:00:34]} Nbd7 {[%emt 0:06:39] [#] was the old line (9...0-0). E04: Open Catalan: 5 Nf3.} 10. Rd1 $146 {[%emt 0:07:35]} ({Predecessor:} 10. b3 c3 11. Nb1 bxa4 12. bxa4 c5 13. Nxc3 cxd4 14. Nb5 O-O 15. Qb2 Qa5 16. Nfxd4 Bxg2 17. Kxg2 {½-½ (36) Li,C (2720)-Mamedyarov,S (2768) Doha 2016}) 10... Qb6 {[%emt 0:07:40]} 11. e4 {[%emt 0:06:19]} (11. b3 $11) 11... a6 $15 {[%emt 0:12:03] Black is slightly better.} 12. e5 {[%emt 0:01:45]} Nd5 {[%emt 0:01:30]} 13. Ne4 {[%emt 0:00:05]} h6 {[%emt 0:02:31]} 14. b3 {[%emt 0:34:35]} ({Better is} 14. Qe2 $15) 14... cxb3 $1 $17 {[%emt 0:15:53]} 15. Qxb3 {[%emt 0:00:04]} O-O {[%emt 0:00:47]} 16. g4 {[%emt 0:04:12]} Rfd8 {[%emt 0:05:45]} (16... c5 $17 {Threatens to win with ...cxd4.} 17. Qb2 cxd4) 17. g5 $11 {[%emt 0:00:22]} h5 {[%emt 0:05:38]} 18. g6 {[%emt 0:00:29]} (18. Nh4 $5 {[%cal Rg5g6]}) 18... fxg6 {[%emt 0:00:16]} 19. Nh4 {[%emt 0:04:05]} Nf8 {[%emt 0:01:24]} 20. Qg3 {[%emt 0:04:54]} Ne7 {[%emt 0:03:16]} (20... Qc7 $11) 21. a5 {[%emt 0:00:14]} (21. Nd6 Rd7 $11) ({White should try} 21. Bg5 $1 $14) 21... Qa7 {[%emt 0:04:28] [#]} (21... Qc7 $1 $11) 22. Be3 {[%emt 0:04:18] 0x0.001e3971eff3dp-1022s more active pieces.} ({Much less strong is} 22. Nd6 $6 Bxd6 23. exd6 Nf5 24. Nxf5 exf5 $14) (22. Bg5 $1 $16 {[%cal Rg5e7]}) 22... Nf5 {[%emt 0:06:49]} (22... c5 $1 $11 {remains equal.}) 23. Nxf5 $16 {[%emt 0:00:05]} exf5 {[%emt 0:00:31] [#]} 24. d5 $1 $36 {[%emt 0:10:06][%mdl 2048] White is pushing.} Qb8 {[%emt 0:00:18]} 25. dxc6 {[%emt 0:00:04]} Bxc6 {[%emt 0:01:53] [#]} (25... Rxd1+ 26. Rxd1 fxe4 27. Bxe4 Bxc6 28. Bxc6 $18) 26. Nf6+ {[%emt 0:00:04][%mdl 64] Discovered Attack} gxf6 {[%emt 0:00:11]} 27. Bxc6 {[%emt 0:00:04]} Bc3 $2 {[%emt 0:04:42][%mdl 8192] [#] Black cannot hold the game after this.} (27... fxe5 $2 28. Rxd8 Qxd8 29. Qxe5 $18) (27... Qxe5 $11 28. Bxa8 Rxa8) 28. Bb6 $1 $18 {[%emt 0:03:21][%mdl 64] Discovered Attack. A strong pair of Bishops.} Qxe5 {[%emt 0:03:04]} 29. Bxd8 {[%emt 0:01:01]} ({Weaker is} 29. Qxe5 fxe5 30. Bxd8 Rc8 $18) 29... Rxd8 {[%emt 0:00:37]} 30. Rxd8 {[%emt 0:00:05][%cal Bd1d8,Bd8a8,Ba8a6,Ba6d6][%mdl 32] Intending Qxg6+ and mate.} Qxg3+ {[%emt 0:00:24]} 31. hxg3 {[%emt 0:00:04]} Bxa1 {[%emt 0:00:07][%mdl 4096] Endgame KRB-KBN} 32. Bd5+ {[%emt 0:00:35]} Kg7 {[%emt 0:00:10]} 33. Ra8 {[%emt 0:00:32]} Bd4 {[%emt 0:01:34]} 34. Rxa6 {[%emt 0:00:04]} Nd7 {[%emt 0:00:17]} 35. Rd6 {[%emt 0:01:08]} Ne5 {[%emt 0:00:17]} (35... Nb8 {might work better.} 36. Rd8 Ba7 37. Rg8+ Kh7) 36. a6 {[%emt 0:00:30]} Bc5 $2 {[%emt 0:01:17] [#]} (36... Ng4 {was called for.} 37. Bf3 Bxf2+ 38. Kg2 Bc5 39. Rd7+ Kh6) 37. Kg2 $1 {[%emt 0:01:09] Weighted Error Value: White=0.25 (precise) /Black=0.74} 1-0

[Event "15th Paleochora Open 2022"]
[Site "Paleochora"]
[Date "2022.07.18"]
[Round "2.7"]
[White "Georgiou, Kostantinos"]
[Black "Stremavicius, Titas"]
[Result "0-1"]
[ECO "B62"]
[WhiteElo "2259"]
[BlackElo "2532"]
[Annotator "TA"]
[PlyCount "112"]
[EventDate "2022.07.17"]
[EventType "swiss"]
[EventCountry "GRE"]
[SourceTitle "playchess.com"]
[Source "ChessBase"]
[SourceQuality "1"]
[TimeControl "40/5400+30:900+30"]

{[%evp 13,112,13,43,27,32,40,39,0,28,-18,-22,-79,-70,-65,-75,-79,-80,-75,-95,-91,-47,-17,-24,-99,-97,-143,-157,-136,-124,-147,-120,-121,-117,-93,-116,-114,-88,-191,-206,-212,-196,-207,-123,-225,-222,-223,-202,-210,-206,-201,-246,-208,-197,-247,-256,-211,-225,-206,-135,-388,0,-616,-612,-558,-457,-773,-720,-592,-481,-2752,-2305,-2395,-2338,-4602,-4203,-29973,-29974,-29974,-29975,-29980,-29981,-29983,-29984,-29985,-29986,-29987,-29988,-29987,-29985,-29993,-29993,-29995,-29989,-29990,-29987,-29987,-29988,-29988,-29989,-29989,-29989]} 1. e4 {[%emt 0:00:05]} c5 {[%emt 0:00:14]} 2. Nf3 {[%emt 0:00:06]} Nc6 {[%emt 0:00:07]} 3. d4 {[%emt 0:00:06]} cxd4 {[%emt 0:00:08]} 4. Nxd4 {[%emt 0:00:05]} Nf6 {[%emt 0:00:14]} 5. Nc3 {[%emt 0:00:11]} d6 {[%emt 0:00:10]} 6. Bg5 {[%emt 0:00:21]} e6 {[%emt 0:00:11]} 7. Qd3 {[%emt 0:00:33]} a6 {[%emt 0:08:09]} 8. Nxc6 {[%emt 0:05:21] outshines the older 8.0-0-0. B62: Sicilian: Richter-Rauzer: 6...e6: Unusual White 7th moves.} bxc6 {[%emt 0:00:05]} 9. O-O-O {[%emt 0:01:35][%cal Oe4e5]} Be7 {[%emt 0:02:20]} 10. f4 {[%emt 0:03:22] White is slightly better.} d5 {[%emt 0:06:32] [#]} 11. Qe3 $146 {[%emt 0:12:19]} (11. Qg3 {is superior.}) ({Predecessor:} 11. e5 Nd7 12. Bxe7 Qxe7 13. g4 Rb8 14. h4 Qb4 15. b3 Qxf4+ 16. Kb1 Nxe5 17. Qe2 Nxg4 {0-1 (55) Mendez Fortes,E (2250)-Golubovskis,M (2219) Chess.com INT 2022}) 11... Rb8 $11 {[%emt 0:15:31]} 12. Bxf6 {[%emt 0:11:30]} (12. Qg3 $11) 12... Bxf6 $17 {[%emt 0:02:44]} 13. exd5 {[%emt 0:01:45]} cxd5 {[%emt 0:00:10]} 14. Rxd5 {[%emt 0:01:25]} Qe7 {[%emt 0:00:13]} 15. Rc5 {[%emt 0:07:28]} O-O {[%emt 0:02:33] Threatens to win with ...Rd8.} (15... Qb7 16. b3 $11) 16. Be2 {[%emt 0:16:00]} Rb4 {[%emt 0:04:26]} ({Reject} 16... Qb7 $6 17. b3 $11) 17. Rc4 {[%emt 0:02:32] Prevents Bd4.} Bb7 {[%emt 0:11:56]} 18. Rd1 {[%emt 0:09:03]} (18. Rxb4 $11 {remains equal.} Qxb4 19. a3) 18... Bxg2 {[%emt 0:02:29]} 19. Qc5 {[%emt 0:05:25]} (19. a3 $142 Rxc4 20. Bxc4) 19... Qxc5 {[%emt 0:01:55]} 20. Rxc5 {[%emt 0:00:05]} Rfb8 {[%emt 0:03:16]} 21. b3 {[%emt 0:01:36]} Bd4 {[%emt 0:01:02]} 22. Rg5 {[%emt 0:05:20] [#] And now Rxd4 would win.} Be3+ {[%emt 0:04:29]} ({But not} 22... Bxc3 $6 23. Rxg2 Rxf4 24. Bxa6 $11) 23. Kb2 {[%emt 0:00:40]} Bb7 {[%emt 0:00:19]} 24. Ra5 {[%emt 0:02:36]} Bxf4 {[%emt 0:11:26] A strong pair of Bishops.} (24... Rxf4 {seems wilder.} 25. Bxa6 Bc6 26. Bb5 Bg2) 25. Bxa6 {[%emt 0:01:24]} (25. a3 $17 {keeps fighting.} Rb6 26. Na4) 25... Bxa6 $19 {[%emt 0:00:43]} (25... Bxh2 26. a3 Rb6 27. Bxb7 R6xb7 28. b4 $17) 26. Rxa6 {[%emt 0:00:06]} Bxh2 {[%emt 0:00:08]} 27. a3 {[%emt 0:01:17]} R4b7 {[%emt 0:03:37]} ({Better is} 27... Rg4 $19 {White must now prevent ...g5.} 28. Rb6 Re8) 28. Rc6 {[%emt 0:03:09]} (28. b4 $17 {was called for.}) 28... g5 {[%emt 0:03:12][%cal Bg7g5,Bg5g4,Bg4g3][%mdl 32]} 29. b4 {[%emt 0:01:28]} Rc7 {[%emt 0:03:05]} 30. Rxc7 {[%emt 0:01:06]} Bxc7 {[%emt 0:00:03][%mdl 4096] Endgame KRB-KRN} 31. Ne4 {[%emt 0:00:27]} Be5+ {[%emt 0:04:12]} 32. Kb3 {[%emt 0:00:07]} g4 {[%emt 0:00:03]} 33. a4 {[%emt 0:01:26]} (33. c4 $142) 33... f5 {[%emt 0:01:16][%cal Bf7f5,Bf5f4][%mdl 32]} 34. Nc5 {[%emt 0:00:39] [#]} g3 $1 {[%emt 0:00:51]} 35. a5 {[%emt 0:03:09]} Ra8 {[%emt 0:02:31]} 36. a6 $2 {[%emt 0:01:38][%mdl 8192]} (36. Nxe6 $17 {was worth a try.} Kf7 37. Ng5+ Kg6 38. Nf3) 36... Bc7 $2 {[%emt 0:03:58]} ({Weaker is} 36... Kf7 37. b5 $11) (36... f4 $19 37. Nd3 Bc7) 37. Kc4 $2 {[%emt 0:02:25][%mdl 8192]} (37. Nxe6 $11 Bb6 38. Rd7) 37... f4 {[%emt 0:01:22]} 38. Nxe6 {[%emt 0:00:28]} Rxa6 {[%emt 0:01:20]} 39. Nxc7 {[%emt 0:00:59] KRN-KR} (39. Nd4 $142 Rd6 40. Re1) 39... Rc6+ {[%emt 0:00:40][%mdl 64] Skewer, Double Attack} 40. Kd5 {[%emt 0:00:00]} Rxc7 {[%emt 0:00:00] KR-KR} 41. Rg1 {[%emt 0:04:49]} (41. Ke4 $142 Rc4+ 42. Kf3 Rxb4 43. Rh1) 41... h5 {[%emt 0:05:07][%cal Bh7h5,Bh5h4,Bh4h3,Bh3h2][%mdl 32] aiming for ...h4.} 42. b5 {[%emt 0:04:46]} h4 {[%emt 0:01:21] Strongly threatening ...h3.} 43. b6 {[%emt 0:01:58]} Re7 {[%emt 0:00:14] Hoping for ...h3.} 44. b7 {[%emt 0:04:06]} Rxb7 {[%emt 0:00:08] Black mates.} 45. Ke4 {[%emt 0:00:04]} Rb4+ {[%emt 0:00:16]} 46. Kf3 {[%emt 0:00:03]} h3 {[%emt 0:00:16]} 47. Rc1 {[%emt 0:00:52]} Rc4 {[%emt 0:00:19]} 48. Kg4 {[%emt 0:00:50]} h2 {[%emt 0:00:25]} 49. Kh3 {[%emt 0:01:11] [#]} Rxc2 $3 {[%emt 0:00:14][%mdl 512]} 50. Ra1 {[%emt 0:00:24]} (50. Rb1 Kf7) 50... Kf7 {[%emt 0:00:50]} 51. Rf1 {[%emt 0:00:35]} Ke6 {[%emt 0:00:22]} 52. Ra1 {[%emt 0:00:23]} Kd5 {[%emt 0:00:24]} 53. Ra5+ {[%emt 0:00:34]} Ke4 {[%emt 0:00:12]} 54. Ra4+ {[%emt 0:00:06]} Ke3 {[%emt 0:00:09]} 55. Ra3+ {[%emt 0:00:04]} Kd2 {[%emt 0:00:17]} 56. Ra1 {[%emt 0:01:12]} Rc1 {[%emt 0:00:13] Weighted Error Value: White=0.81/Black=0.29 (precise)} 0-1

[Event "15th Paleochora Open 2022"]
[Site "Paleochora"]
[Date "2022.07.18"]
[Round "2.8"]
[White "Sohier, Julien"]
[Black "Yilmazyerli, Mert"]
[Result "0-1"]
[ECO "B23"]
[WhiteElo "2192"]
[BlackElo "2520"]
[Annotator "TA"]
[PlyCount "48"]
[EventDate "2022.07.17"]
[EventType "swiss"]
[EventCountry "GRE"]
[SourceTitle "playchess.com"]
[Source "ChessBase"]
[SourceQuality "1"]
[TimeControl "40/5400+30:900+30"]

{[%evp 9,48,0,0,-18,60,54,46,0,19,-3,-6,0,3,-68,-62,-81,-19,-10,-14,-154,-125,-128,-125,-122,-125,-235,-247,-358,-361,-383,-375,-494,-484,-447,-446,-1132,-1118,-1104,-1062,-1059,-999]} 1. e4 {[%emt 0:00:02]} c5 {[%emt 0:07:05]} 2. Nc3 {[%emt 0:00:09]} d6 {[%emt 0:00:19]} 3. d4 {[%emt 0:00:22]} cxd4 {[%emt 0:00:10]} 4. Qxd4 {[%emt 0:00:04]} Nc6 {[%emt 0:00:14]} 5. Qd2 {[%emt 0:00:04]} e6 {[%emt 0:00:20]} 6. b3 {[%emt 0:00:15] B23: Closed Sicilian: Lines without g3.} d5 {[%emt 0:00:12]} ({Better is} 6... Nf6 $11) 7. exd5 $14 {[%emt 0:17:16]} exd5 {[%emt 0:00:10] [#]} 8. Bb2 $146 {[%emt 0:00:40]} (8. Nxd5 $14 Nf6 9. Ne3) ({Predecessor:} 8. a3 Nf6 9. Bb2 d4 10. Nce2 Bc5 11. Nf3 O-O 12. Nexd4 Ne4 13. Qd3 Qa5+ 14. b4 Nxb4 15. axb4 Qxb4+ 16. Bc3 Nxc3 17. Be2 Re8 18. O-O Bxd4 19. Nxd4 Qxd4 {0-1 (19) Yang,K (2481)-Matlakov,M (2674) Chess.com INT 2022}) 8... d4 {[%emt 0:04:37]} 9. Nb5 {[%emt 0:02:10]} Bb4 {[%emt 0:04:46]} 10. c3 {[%emt 0:01:11]} Qe7+ {[%emt 0:00:33]} 11. Qe2 {[%emt 0:09:53]} ({White should try} 11. Be2 $1 $11 dxc3 12. Bxc3 Bxc3 13. Nxc3) 11... dxc3 $15 {[%emt 0:01:30]} 12. Bxc3 {[%emt 0:07:21] [#]} Bxc3+ {[%emt 0:02:43]} (12... Be6 $1 $17 {And now ...a6 would win.} 13. Nf3 Bxc3+ 14. Nxc3 Nf6) 13. Nxc3 $11 {[%emt 0:00:12]} Be6 {[%emt 0:00:08] Against Nd5. Black wants to play ...Nd4.} 14. O-O-O {[%emt 0:12:09]} (14. Qe3 $1 $11) 14... Nf6 $36 {[%emt 0:00:26][%mdl 2048] ...0-0 is the strong threat. Keeping White busy.} 15. Kb2 {[%emt 0:00:40]} O-O {[%emt 0:02:10]} 16. Nf3 {[%emt 0:00:25]} a5 {[%emt 0:04:04][%cal Oa5a4] aiming for ...a4!} 17. Nd4 {[%emt 0:07:31]} (17. Qe1 $17 {was worth a try.}) 17... a4 $19 {[%emt 0:04:47]} 18. Nxe6 {[%emt 0:10:51]} (18. Nxa4 $142 Nxd4 19. Rxd4) 18... fxe6 {[%emt 0:04:09][%cal Bf7e6,Be6d5][%mdl 32]} 19. Nxa4 {[%emt 0:01:42]} Nd5 {[%emt 0:00:13]} 20. Rxd5 {[%emt 0:01:34] Threatens to win with Rd2.} Qf6+ {[%emt 0:00:41] Black is clearly winning.} ({Inferior is} 20... exd5 21. Qxe7 Nxe7 22. f3 $17) 21. Kb1 {[%emt 0:00:14] Black must now prevent Rd6.} exd5 {[%emt 0:00:09]} 22. f3 {[%emt 0:00:28]} (22. Qd2 $142 Qxf2 23. Qxf2 Rxf2 24. Bb5) 22... Nb4 {[%emt 0:07:17] ( -> ...Qf5+)} 23. Qd2 {[%emt 0:00:41]} Qf5+ {[%emt 0:00:34]} 24. Kb2 {[%emt 0:00:50] [#]} Rfc8 $1 {[%emt 0:00:30] Weighted Error Value: White=0.64/Black=0.16 (very precise)} 0-1